bitfinex-derivatives/quotes_BTCF0:USTF0_20250209
["timestamp","ask_amount","ask_price","bid_price","bid_amount"]
[1739141378726,0.5690645,96017.0,96016.0,0.3132667]
[1739141379135,0.5690645,96017.0,96016.0,0.3082667]
[1739141379336,0.3618,96017.0,96016.0,0.3132667]
[1739141381026,0.3618,96017.0,96016.0,0.3142667]
[1739141381335,0.3608,96017.0,96016.0,0.3092667]
[1739141381534,0.3608,96017.0,96016.0,0.3132667]
[1739141385239,0.3608,96017.0,96016.0,0.3122667]
[1739141385542,0.3608,96017.0,96016.0,0.3132667]
[1739141386732,0.3608,96017.0,96016.0,0.3092667]
[1739141386932,0.3618,96017.0,96016.0,0.3142667]
[1739141387532,0.3608,96017.0,96016.0,0.3092667]
[1739141387737,0.3608,96017.0,96016.0,0.3132667]
[1739141388328,0.3618,96017.0,96016.0,0.3142667]
[1739141389743,0.3618,96017.0,96016.0,0.3152667]
[1739141390445,0.3608,96017.0,96016.0,0.3092667]
[1739141390636,0.3618,96017.0,96016.0,0.3142667]
[1739141390837,0.3618,96017.0,96016.0,0.3152667]
[1739141391240,0.3608,96017.0,96016.0,0.3102667]
[1739141391542,0.3608,96017.0,96016.0,0.3142667]
[1739141392938,0.3608,96017.0,96016.0,0.3132667]
[1739141393543,0.41144531,96017.0,96016.0,0.3132667]
[1739141393743,0.41144531,96017.0,96016.0,0.3122667]
[1739141394350,0.41144531,96017.0,96016.0,0.3092667]
[1739141394632,0.41144531,96017.0,96016.0,0.3122667]
[1739141396242,0.05064531,96017.0,96016.0,0.3122667]
[1739141396842,0.05064531,96017.0,96016.0,0.3112667]
[1739141397755,0.05064531,96017.0,96016.0,0.3082667]
[1739141397943,0.05064531,96017.0,96016.0,0.3102667]
[1739141399666,0.25767186,96017.0,96016.0,0.3102667]
[1739141399947,0.25767186,96017.0,96016.0,0.3122667]
[1739141400447,0.25767186,96017.0,96016.0,0.3102667]
[1739141400659,0.25767186,96017.0,96016.0,0.3122667]
[1739141401045,0.25767186,96017.0,96016.0,0.3102667]
[1739141401251,0.25767186,96017.0,96016.0,0.3142667]
[1739141402152,0.25767186,96017.0,96016.0,0.3132667]
[1739141403444,0.25767186,96017.0,96016.0,0.3092667]
[1739141403652,0.25767186,96017.0,96016.0,0.3122667]
[1739141403855,0.25767186,96017.0,96016.0,0.3112667]
[1739141404052,0.25767186,96017.0,96016.0,0.3122667]
[1739141404253,0.16988005,96019.0,96018.0,0.2082623]
[1739141406557,0.16988005,96019.0,96018.0,0.2092623]
[1739141406758,0.17188005,96019.0,96018.0,0.2092623]
[1739141407451,0.16988005,96019.0,96018.0,0.2082623]
[1739141408856,0.37814015,96019.0,96018.0,0.2082623]
[1739141410045,0.37914015,96019.0,96018.0,0.2082623]
[1739141410750,0.2082644,96017.0,96016.0,0.1]
[1739141411959,0.2082644,96017.0,96015.0,0.08943853]
[1739141412453,0.31401351,96019.0,96007.0,0.2082855]
[1739141412657,0.08205887,96017.0,96015.0,0.2082683]
[1739141412857,0.31401351,96019.0,96015.0,0.2082683]
[1739141413759,0.001,96017.0,96015.0,0.2082683]
[1739141414160,0.17088005,96017.0,96015.0,0.2082683]
[1739141414362,0.2082701,96015.0,96002.0,0.2647]
[1739141414554,0.08205887,96012.0,96011.0,0.208277]
[1739141414756,0.2082701,96015.0,96011.0,0.208277]
[1739141415658,0.2082701,96015.0,96002.0,0.2647]
[1739141415860,0.2082701,96015.0,96012.0,0.2082752]
[1739141416061,0.208271,96014.0,96012.0,0.2082752]
[1739141416968,0.2082744,96013.0,96011.0,0.001]
[1739141417264,0.2083491,95978.0,95960.0,0.30434999]
[1739141417461,0.2083621,95973.0,95960.0,0.30554999]
[1739141417670,0.2083621,95973.0,95960.0,0.30434999]
[1739141419069,0.2083621,95973.0,95971.0,0.18860065]
[1739141420565,0.2093621,95973.0,95971.0,0.18760065]
[1739141420871,0.2093621,95973.0,95960.0,0.30434999]
[1739141420872,0.2083726,95968.0,95960.0,0.30434999]
[1739141421171,0.3608,95967.0,95966.0,0.1897047]
[1739141421670,0.2083856,95962.0,95960.0,0.20538252]
[1739141421860,0.3608,95961.0,95953.0,0.00124]
[1739141422055,0.3608,95961.0,95936.0,0.2084401]
[1739141422056,0.5691946,95958.0,95936.0,0.2084401]
[1739141422259,0.1946,95957.0,95939.0,0.2084324]
[1739141422657,0.3608,95951.0,95939.0,0.2084324]
[1739141423663,0.3608,95951.0,95940.0,0.0882]
[1739141424262,0.3608,95951.0,95947.0,0.2084159]
[1739141424567,0.3638,95951.0,95947.0,0.2084159]
[1739141425473,0.00015629,95960.0,95959.0,0.2083903]
[1739141425771,0.22976012,96000.0,95989.0,0.208324]
[1739141425972,0.103,95999.0,95989.0,0.208324]
[1739141426160,0.103,95999.0,95980.0,0.3608]
[1739141426358,0.103,95999.0,95998.0,0.2083056]
[1739141427071,0.10456381,96000.0,95998.0,0.2083056]
[1739141427272,0.11498291,96000.0,95998.0,0.2083056]
[1739141427459,0.009,95999.0,95998.0,0.2083056]
[1739141427662,0.018,95999.0,95998.0,0.2083056]
[1739141427863,0.009,95999.0,95998.0,0.2083056]
[1739141428063,0.017,95999.0,95998.0,0.2083056]
[1739141428267,0.008,95999.0,95998.0,0.2083056]
[1739141429562,0.003,95999.0,95998.0,0.2083056]
[1739141430060,0.001,95999.0,95989.0,0.00015629]
[1739141430261,0.001,95999.0,95998.0,0.2083056]
[1739141430674,0.002,95999.0,95998.0,0.2083056]
[1739141431375,0.11498291,96000.0,95998.0,0.2083056]
[1739141431675,0.002,95999.0,95998.0,0.2083056]
[1739141432676,0.002,95999.0,95988.0,0.3608]
[1739141432677,0.2083151,95994.0,95988.0,0.3608]
[1739141433874,0.2083151,95994.0,95982.0,0.2083398]
[1739141435275,0.01198291,96000.0,95993.0,0.208316]
[1739141435470,0.10292,95999.0,95993.0,0.208316]
[1739141435673,0.01198291,96000.0,95993.0,0.208316]
[1739141435874,0.10292,95999.0,95993.0,0.3608]
[1739141436074,0.10292,95999.0,95994.0,0.208313]
[1739141436975,0.10692,95999.0,95994.0,0.208313]
[1739141437677,0.10392,95999.0,95996.0,0.2083084]
[1739141437874,0.10692,95999.0,95996.0,0.2083084]
[1739141439179,0.10592,95999.0,95996.0,0.2083084]
[1739141439380,0.10692,95999.0,95996.0,0.2083084]
[1739141439879,0.10292,95999.0,95996.0,0.2083084]
[1739141440479,0.10292,95999.0,95983.0,0.54136]
[1739141440480,0.46372,95999.0,95983.0,0.36196]
[1739141440673,0.1841,95998.0,95983.0,0.3608]
[1739141441473,0.1841,95998.0,95994.0,0.1]
[1739141441778,0.2083108,95996.0,95994.0,0.1]
[1739141443569,0.2123108,95996.0,95994.0,0.1]
[1739141443985,0.2143108,95996.0,95994.0,0.1]
[1739141444985,0.23656625,95995.0,95994.0,0.1]
[1739141445781,0.2083245,95990.0,95983.0,0.3608]
[1739141445977,0.2083253,95989.0,95983.0,0.3608]
[1739141447678,0.2083274,95988.0,95983.0,0.3608]
[1739141448383,0.001,95990.0,95983.0,0.3608]
[1739141448683,0.2083361,95984.0,95983.0,0.3608]
[1739141450175,0.2103361,95984.0,95983.0,0.3608]
[1739141450984,0.26099944,95984.0,95983.0,0.3608]
[1739141451576,0.26099944,95984.0,95977.0,0.2083509]
[1739141451777,0.26199944,95984.0,95977.0,0.2083509]
[1739141452379,0.26399944,95984.0,95977.0,0.2083509]
[1739141453079,0.36479944,95984.0,95977.0,0.2083509]
[1739141453286,0.36179944,95984.0,95977.0,0.2083509]
[1739141453579,0.15446334,95984.0,95977.0,0.2083509]
[1739141453778,0.2083385,95983.0,95977.0,0.2083509]
[1739141454185,0.2083405,95982.0,95977.0,0.2083509]
[1739141454383,0.2083447,95981.0,95978.0,0.2083469]
[1739141454586,0.51526334,95984.0,95962.0,0.0905]
[1739141454782,0.12519631,95982.0,95974.0,0.2083563]
[1739141455177,0.12519631,95982.0,95975.0,0.2083555]
[1739141455586,0.2083513,95977.0,95975.0,0.2083555]
[1739141455787,0.1772,95976.0,95975.0,0.2083555]
[1739141458086,0.35336955,95976.0,95975.0,0.2083555]
[1739141459693,0.25336955,95976.0,95975.0,0.2083555]
[1739141460586,0.17616955,95976.0,95975.0,0.2083555]
[1739141461183,0.18667759,95976.0,95972.0,0.36196]
[1739141461385,0.2083599,95973.0,95972.0,0.3608]
[1739141461688,0.2083599,95973.0,95972.0,0.5691621]
[1739141462275,0.2083599,95973.0,95972.0,0.5701621]
[1739141463491,0.18667759,95976.0,95973.0,0.2083582]
[1739141463688,0.18667759,95976.0,95974.0,0.2083578]
[1739141465982,0.01050804,95976.0,95974.0,0.2083578]
[1739141466184,0.2083556,95975.0,95970.0,0.3608]
[1739141466591,0.2083599,95974.0,95970.0,0.3608]
[1739141467293,0.2083615,95973.0,95970.0,0.3618]
[1739141467993,0.2083615,95973.0,95970.0,0.3608]
[1739141468196,0.2083615,95973.0,95970.0,0.3618]
[1739141469399,0.09765762,95981.0,95970.0,0.3618]
[1739141469400,0.39571827,95971.0,95970.0,0.3618]
[1739141469601,0.39571827,95971.0,95970.0,0.001]
[1739141470795,0.39571827,95971.0,95970.0,0.2093665]
[1739141473090,0.60185456,95971.0,95970.0,0.2093665]
[1739141473594,0.61219836,95971.0,95970.0,0.2093665]
[1739141476700,0.40383406,95971.0,95970.0,0.2093665]
[1739141476902,0.18712321,95971.0,95970.0,0.2083665]
[1739141477603,0.18812321,95971.0,95970.0,0.2083665]
[1739141478002,0.18812321,95971.0,95967.0,0.35023827]
[1739141478003,0.18712321,95971.0,95967.0,0.35023827]
[1739141478203,0.18712321,95971.0,95970.0,0.2083665]
[1739141478800,0.18812321,95971.0,95970.0,0.2083665]
[1739141479406,0.18612321,95971.0,95970.0,0.2083665]
[1739141479607,0.18812321,95971.0,95970.0,0.2083665]
[1739141479806,0.0133438,95971.0,95970.0,0.2083665]
[1739141480801,0.0113438,95971.0,95970.0,0.2083665]
[1739141481009,0.0143438,95971.0,95970.0,0.2083665]
[1739141481604,0.0153438,95971.0,95970.0,0.2083665]
[1739141482419,0.06601359,95971.0,95970.0,0.2083665]
[1739141493825,0.17483519,95971.0,95970.0,0.2083665]
[1739141497328,0.06601359,95971.0,95970.0,0.2083665]
[1739141500134,0.0153438,95971.0,95970.0,0.2083665]
[1739141503525,0.06601359,95971.0,95970.0,0.2083665]
[1739141510940,0.16472948,95971.0,95970.0,0.2083665]
[1739141513139,0.16272948,95971.0,95970.0,0.2083665]
[1739141513341,0.15972948,95971.0,95970.0,0.2093665]
[1739141515045,0.15972948,95971.0,95970.0,0.2083665]
[1739141515241,0.15972948,95971.0,95970.0,0.2093665]
[1739141515631,0.14938568,95971.0,95970.0,0.2093665]
[1739141516639,0.14938568,95971.0,95970.0,0.2083665]
[1739141516838,0.05066979,95971.0,95970.0,0.2093665]
[1739141518248,0.21870136,95983.0,95982.0,0.2083408]
[1739141518442,0.21870136,95983.0,95982.0,0.5691408]
[1739141519145,0.00015629,95989.0,95982.0,0.3608]
[1739141519343,0.00015629,95989.0,95988.0,0.2083278]
[1739141520749,0.00415629,95989.0,95988.0,0.2083278]
[1739141521642,0.01115629,95989.0,95988.0,0.2083278]
[1739141522045,0.01115629,95989.0,95988.0,0.5691278]
[1739141528441,0.01115629,95989.0,95988.0,0.2083278]
[1739141528641,0.01115629,95989.0,95988.0,0.9299278]
[1739141531038,0.18718589,96001.0,96000.0,0.2083018]
[1739141531454,0.08213389,96010.0,95999.0,0.3608]
[1739141531645,0.08213389,96010.0,96002.0,0.2082959]
[1739141531846,0.08213389,96010.0,95999.0,0.3608]
[1739141531847,0.08213389,96010.0,96003.0,0.2082947]
[1739141532555,0.08213389,96010.0,96005.0,0.20829]
[1739141532754,0.3103165,96012.0,96005.0,0.20829]
[1739141532946,0.2082765,96012.0,96005.0,0.20829]
[1739141533655,0.009,96010.0,96005.0,0.20829]
[1739141533853,0.018,96010.0,96005.0,0.20829]
[1739141534049,0.009,96010.0,96005.0,0.20829]
[1739141534654,0.2262765,96012.0,96005.0,0.20929]
[1739141535448,0.009,96010.0,96005.0,0.001]
[1739141536056,0.018,96010.0,96005.0,0.001]
[1739141536258,0.21822029,96009.0,96005.0,0.001]
[1739141536755,0.21822029,96009.0,95999.0,0.3608]
[1739141537059,0.21822029,96009.0,96007.0,0.2082864]
[1739141537651,0.23622029,96009.0,96007.0,0.2082864]
[1739141538467,0.23622029,96009.0,96007.0,0.2092864]
[1739141538858,0.0686569,96009.0,96008.0,0.3608]
[1739141539453,0.0686569,96009.0,96008.0,0.5690844]
[1739141540150,0.0686569,96009.0,96008.0,0.5700844]
[1739141540546,0.0686569,96009.0,96008.0,0.3618]
[1739141540762,0.0686569,96009.0,96008.0,0.31779999]
[1739141543363,0.0686569,96009.0,96008.0,0.52608439]
[1739141547173,0.15842925,96009.0,96008.0,0.52608439]
[1739141549061,0.14042925,96009.0,96008.0,0.52508439]
[1739141549270,0.15842925,96009.0,96008.0,0.52708439]
[1739141550574,0.0686569,96009.0,96008.0,0.52708439]
[1739141553975,0.018,96009.0,96008.0,0.52708439]
[1739141554475,1e-08,96009.0,96008.0,0.52708439]
[1739141555269,0.02799152,96010.0,96008.0,0.52708439]
[1739141555466,2e-08,96010.0,96008.0,0.52708439]
[1739141555668,0.01896192,96019.0,96008.0,0.31779999]
[1739141555877,0.08486749,96023.0,96022.0,0.2082541]
[1739141556173,9e-08,96023.0,96022.0,0.5690541]
[1739141556575,0.33991682,96039.0,96038.0,0.2082194]
[1739141556767,0.085,96055.0,96038.0,0.7216]
[1739141556963,0.085,96055.0,96053.0,0.2081851]
[1739141557969,0.00015621,96056.0,96054.0,0.3608]
[1739141558171,0.00015621,96056.0,96055.0,0.2081826]
[1739141558774,0.24928113,96067.0,96064.0,0.2081629]
[1739141558971,0.24928113,96067.0,96066.0,0.3608]
[1739141559780,0.10948113,96067.0,96066.0,0.3608]
[1739141559980,0.1,96100.0,96086.0,0.2081154]
[1739141560178,0.1,96100.0,96086.0,0.9297154]
[1739141560675,0.00015613,96096.0,96086.0,0.9297154]
[1739141560881,0.00015613,96096.0,96086.0,0.8927154]
[1739141561181,0.00015613,96096.0,96095.0,0.2080959]
[1739141561379,0.00015613,96096.0,96095.0,0.5688959]
[1739141561680,0.12475567,96130.0,96106.0,0.2080703]
[1739141561981,0.12475567,96130.0,96120.0,0.3608]
[1739141562783,0.12475567,96130.0,96129.0,0.3608]
[1739141562983,0.208019,96131.0,96129.0,0.3608]
[1739141563575,0.009,96130.0,96129.0,0.3608]
[1739141563775,0.013,96130.0,96129.0,0.3608]
[1739141564280,0.004,96130.0,96129.0,0.3678]
[1739141565475,0.002,96131.0,96129.0,0.3748]
[1739141565981,0.002,96131.0,96129.0,0.3678]
[1739141566188,0.001,96130.0,96129.0,0.3738]
[1739141566881,0.002,96131.0,96129.0,0.3738]
[1739141567083,0.001,96130.0,96129.0,0.3738]
[1739141567388,0.002,96130.0,96129.0,0.3738]
[1739141568084,0.001,96130.0,96129.0,0.3668]
[1739141568386,0.301,96130.0,96120.0,0.362]
[1739141568587,0.12575567,96130.0,96120.0,0.3608]
[1739141568876,0.10144,96129.0,96120.0,0.3608]
[1739141569079,0.10144,96129.0,96115.0,0.00015613]
[1739141569275,0.2080286,96127.0,96121.0,0.3608]
[1739141569480,0.2080286,96127.0,96115.0,0.00015613]
[1739141569790,0.2080392,96122.0,96109.0,0.3608]
[1739141570086,0.12475567,96119.0,96109.0,0.3608]
[1739141570383,0.208051,96116.0,96098.0,0.3608]
[1739141570587,0.12475567,96110.0,96098.0,0.3608]
[1739141570884,0.2080661,96109.0,96098.0,0.3608]
[1739141571088,0.2080712,96107.0,96098.0,0.3608]
[1739141571275,0.2080741,96106.0,96098.0,0.3608]
[1739141571471,0.3608,96107.0,96097.0,0.00015604]
[1739141571671,0.3608,96098.0,96097.0,0.00015604]
[1739141572882,0.3608,96098.0,96096.0,0.18380799]
[1739141572883,0.4908,96098.0,96083.0,0.00116]
[1739141573075,0.2081219,96084.0,96073.0,0.36196]
[1739141573275,0.1847,96083.0,96073.0,0.00236]
[1739141573482,0.3608,96080.0,96070.0,0.18380799]
[1739141573685,0.3608,96071.0,96064.0,0.24471555]
[1739141573886,0.3608,96065.0,96047.0,0.3644608]
[1739141574190,0.5689805,96056.0,96047.0,0.3644608]
[1739141574379,0.2081977,96048.0,96047.0,0.3644608]
[1739141574686,0.2081977,96048.0,96047.0,0.3636608]
[1739141574991,0.5689977,96048.0,96047.0,0.3636608]
[1739141575184,0.8689977,96048.0,96047.0,0.3636608]
[1739141575491,0.2082216,96037.0,96036.0,0.00088]
[1739141575698,0.3095416,96037.0,96030.0,0.42419299]
[1739141576006,0.3095416,96037.0,96030.0,0.0008]
[1739141576285,0.40132,96037.0,96014.0,0.3608]
[1739141576590,0.40132,96037.0,96002.0,0.30242758]
[1739141576591,0.12475567,96024.0,96003.0,0.0008]
[1739141576886,0.2082824,96009.0,96002.0,0.30242758]
[1739141577076,0.10132,96008.0,96004.0,0.00015621]
[1739141577277,0.2082866,96007.0,96004.0,0.00015621]
[1739141578384,0.3608,96005.0,96004.0,0.00015621]
[1739141578780,0.3608,96005.0,96004.0,0.00715621]
[1739141579181,0.569091,96005.0,96004.0,0.01415621]
[1739141579876,0.569091,96005.0,96004.0,0.00015621]
[1739141580080,0.571091,96005.0,96004.0,0.01415621]
[1739141582084,0.570091,96005.0,96004.0,0.00715621]
[1739141582283,0.577091,96005.0,96004.0,0.00015621]
[1739141582589,0.2082997,96001.0,95983.0,0.3616]
[1739141582781,0.3608,95992.0,95983.0,0.3608]
[1739141582984,0.2083328,95986.0,95983.0,0.3608]
[1739141583176,0.3608,95992.0,95976.0,0.00236258]
[1739141583177,0.2083387,95983.0,95976.0,0.00156258]
[1739141583383,0.2083387,95983.0,95982.0,1e-08]
[1739141583782,0.3183387,95983.0,95982.0,1e-08]
[1739141583990,0.3383387,95983.0,95982.0,1e-08]
[1739141584290,0.2083637,95972.0,95963.0,0.1916]
[1739141584682,0.24951134,95973.0,95956.0,0.36168]
[1739141584889,0.2083952,95957.0,95956.0,0.3608]
[1739141585084,0.2084034,95954.0,95948.0,0.00084]
[1739141585397,0.10128,95957.0,95942.0,0.1871]
[1739141585887,0.2084135,95949.0,95942.0,0.1871]
[1739141586480,0.2084135,95949.0,95948.0,0.009]
[1739141587088,0.2084219,95945.0,95942.0,0.008]
[1739141587288,0.2084256,95943.0,95942.0,0.013]
[1739141587977,0.5084256,95943.0,95942.0,0.00631152]
[1739141588293,0.2084951,95912.0,95900.0,0.1]
[1739141588493,0.3608,95903.0,95902.0,0.1945]
[1739141589179,0.3608,95907.0,95902.0,0.1945]
[1739141589595,0.5693051,95907.0,95902.0,0.1945]
[1739141589789,0.2085125,95903.0,95902.0,0.096]
[1739141590189,0.2085169,95901.0,95900.0,0.1]
[1739141591188,0.3608,95907.0,95883.0,0.0902]
[1739141591393,0.7216,95890.0,95883.0,0.0902]
[1739141591589,0.10128,95889.0,95883.0,0.0902]
[1739141594591,0.10128,95889.0,95883.0,0.0932]
[1739141594990,0.10128,95889.0,95883.0,0.0962]
[1739141595191,0.11173007,95889.0,95883.0,0.0962]
[1739141596094,0.11173007,95889.0,95886.0,6.941e-05]
[1739141598093,0.11373007,95889.0,95886.0,6.941e-05]
[1739141598299,0.23373007,95889.0,95886.0,6.941e-05]
[1739141598509,0.23573007,95889.0,95886.0,6.941e-05]
[1739141599200,0.23673007,95889.0,95886.0,6.941e-05]
[1739141599506,0.13545007,95889.0,95886.0,6.941e-05]
[1739141599801,0.1012,95888.0,95886.0,6.941e-05]
[1739141600302,0.10124,95887.0,95886.0,6.941e-05]
[1739141600500,0.11,95887.0,95886.0,6.941e-05]
[1739141600701,0.21124,95887.0,95886.0,6.941e-05]
[1739141601099,0.10124,95887.0,95886.0,6.941e-05]
[1739141601298,0.22124,95887.0,95886.0,6.941e-05]
[1739141601496,0.22124,95887.0,95886.0,0.00106941]
[1739141602101,0.22224,95887.0,95886.0,0.00106941]
[1739141602301,0.22524,95887.0,95886.0,6.941e-05]
[1739141602500,0.22624,95887.0,95886.0,6.941e-05]
[1739141603006,0.22324,95887.0,95886.0,6.941e-05]
[1739141603304,0.22724,95887.0,95886.0,6.941e-05]
[1739141603699,0.10724,95887.0,95886.0,6.941e-05]
[1739141603900,0.004,95887.0,95886.0,6.941e-05]
[1739141604095,0.01045007,95889.0,95886.0,6.941e-05]
[1739141604096,0.11165007,95889.0,95886.0,6.941e-05]
[1739141604301,0.3608,95890.0,95886.0,0.20861881]
[1739141604497,0.003,95887.0,95886.0,0.20861881]
[1739141604796,0.4729865,95890.0,95886.0,6.941e-05]
[1739141604994,0.47242649,95890.0,95886.0,6.941e-05]
[1739141605195,0.003,95887.0,95886.0,6.941e-05]
[1739141606507,0.005,95887.0,95886.0,6.941e-05]
[1739141607196,0.002,95887.0,95886.0,6.941e-05]
[1739141607796,0.2085457,95888.0,95886.0,6.941e-05]
[1739141608002,0.005,95887.0,95886.0,6.941e-05]
[1739141608492,0.007,95887.0,95886.0,6.941e-05]
[1739141608695,0.009,95887.0,95886.0,6.941e-05]
[1739141609104,0.005,95887.0,95886.0,6.941e-05]
[1739141609606,0.135,95887.0,95886.0,6.941e-05]
[1739141610708,0.009,95887.0,95886.0,6.941e-05]
[1739141611111,0.004,95887.0,95886.0,6.941e-05]
[1739141611406,0.008,95887.0,95886.0,6.941e-05]
[1739141611911,0.003,95887.0,95886.0,6.941e-05]
[1739141612207,0.127,95887.0,95882.0,0.0992]
[1739141612395,0.007,95887.0,95882.0,0.0992]
[1739141612709,0.003,95887.0,95882.0,0.0992]
[1739141612899,0.007,95887.0,95882.0,0.0992]
[1739141613304,0.208556,95883.0,95882.0,0.0992]
[1739141614005,0.309676,95883.0,95882.0,0.0992]
[1739141614202,0.10112,95883.0,95882.0,0.0992]
[1739141614605,0.208559,95882.0,95869.0,0.0993]
[1739141614901,0.3608,95878.0,95870.0,0.0914]
[1739141615902,0.2085856,95870.0,95868.0,0.36168]
[1739141616097,0.3608,95869.0,95857.0,0.3616]
[1739141616298,0.12475567,95867.0,95857.0,0.3608]
[1739141617103,0.12475567,95867.0,95859.0,0.208607]
[1739141617804,0.12475567,95867.0,95857.0,0.3616]
[1739141617993,0.12475567,95867.0,95857.0,0.3628]
[1739141618400,0.33434827,95867.0,95859.0,0.005]
[1739141618602,0.33434827,95867.0,95859.0,0.008]
[1739141619099,0.33334827,95867.0,95859.0,0.003]
[1739141619409,0.2085934,95866.0,95859.0,0.003]
[1739141619798,0.2085957,95865.0,95859.0,0.003]
[1739141620000,0.3096784,95864.0,95859.0,0.003]
[1739141620502,0.2085999,95863.0,95857.0,0.004]
[1739141620803,0.2085999,95863.0,95859.0,0.001]
[1739141621019,0.208602,95862.0,95859.0,0.001]
[1739141621310,0.10108,95864.0,95859.0,0.002]
[1739141621805,0.10108,95864.0,95862.0,0.2085999]
[1739141623792,0.2085886,95868.0,95859.0,0.0018]
[1739141623997,0.2085956,95865.0,95859.0,0.001]
[1739141624206,0.3608,95862.0,95841.0,0.00156484]
[1739141624412,0.7216,95842.0,95825.0,0.18224785]
[1739141624608,0.2086932,95820.0,95818.0,0.18513448]
[1739141624802,0.101,95819.0,95818.0,0.18449448]
[1739141625911,0.101,95819.0,95812.0,0.46579448]
[1739141626213,0.3608,95813.0,95812.0,0.46579448]
[1739141627713,0.3618,95813.0,95812.0,0.46579448]
[1739141628409,0.3658,95813.0,95812.0,0.46679448]
[1739141629001,0.3728,95813.0,95812.0,0.46779448]
[1739141630811,0.3728,95813.0,95812.0,0.2833]
[1739141633304,0.3728,95813.0,95812.0,0.002]
[1739141633510,0.6128,95813.0,95812.0,0.002]
[1739141633709,0.3728,95813.0,95812.0,0.002]
[1739141634699,0.68372,95813.0,95812.0,0.002]
[1739141635107,0.2087344,95801.0,95785.0,0.2957]
[1739141635302,0.2087671,95786.0,95785.0,0.2957]
[1739141635611,0.8804871,95786.0,95785.0,0.2957]
[1739141636001,0.6704871,95786.0,95785.0,0.2957]
[1739141636416,0.6704871,95786.0,95767.0,0.2088065]
[1739141636617,0.12475567,95777.0,95768.0,0.1909]
[1739141636807,0.12475567,95777.0,95769.0,0.301504]
[1739141637013,0.3608,95770.0,95769.0,0.301504]
[1739141638010,0.3608,95770.0,95769.0,0.307504]
[1739141638211,0.7216,95770.0,95769.0,0.0987]
[1739141638820,0.7226,95770.0,95769.0,0.005]
[1739141639312,0.7236,95770.0,95769.0,0.012]
[1739141641214,0.7226,95770.0,95769.0,0.007]
[1739141641417,0.7236,95770.0,95769.0,0.013]
[1739141642121,0.7296,95770.0,95769.0,0.008]
[1739141642316,0.7286,95770.0,95769.0,0.001]
[1739141642520,0.7296,95770.0,95769.0,0.006]
[1739141643017,0.7336,95770.0,95769.0,0.002]
[1739141643722,0.7306,95770.0,95769.0,0.001]
[1739141644423,0.7236,95770.0,95768.0,0.0959]
[1739141644721,0.7236,95770.0,95769.0,0.2088041]
[1739141644722,0.7276,95770.0,95769.0,0.2088041]
[1739141644926,0.7276,95770.0,95700.0,0.1]
[1739141644927,0.3608,95756.0,95700.0,0.1]
[1739141645114,0.3608,95756.0,95680.0,0.3608]
[1739141645115,0.2089844,95687.0,95680.0,0.00056]
[1739141645314,0.7216,95681.0,95678.0,0.1851]
[1739141646224,0.7216,95681.0,95680.0,0.2089984]
[1739141646824,0.7216,95681.0,95678.0,0.0964]
[1739141647015,0.82248,95681.0,95680.0,0.001]
[1739141647618,1.0314762,95681.0,95680.0,0.001]
[1739141647831,0.82248,95681.0,95678.0,0.002]
[1739141648020,0.3608,95672.0,95670.0,0.05420392]
[1739141648213,0.209018,95671.0,95670.0,0.05420392]
[1739141648811,0.209018,95671.0,95660.0,0.62255515]
[1739141649023,0.3608,95661.0,95660.0,0.62255515]
[1739141649913,0.3608,95661.0,95660.0,0.62555515]
[1739141650528,0.6608,95661.0,95660.0,0.52495646]
[1739141650733,0.7708,95661.0,95650.0,0.4660673]
[1739141650918,0.7708,95661.0,95600.0,0.1]
[1739141650919,0.5698617,95651.0,95644.0,0.56085963]
[1739141651119,0.3608,95645.0,95644.0,0.56029963]
[1739141651321,0.8416,95645.0,95644.0,0.074607]
[1739141651523,1.3506748,95645.0,95644.0,0.074607]
[1739141651832,1.3506748,95645.0,95641.0,0.43691303]
[1739141651833,0.2090814,95642.0,95641.0,0.00056]
[1739141652128,0.2090814,95642.0,95600.0,0.1]
[1739141652427,0.3608,95607.0,95600.0,0.1]
[1739141653322,0.3608,95608.0,95600.0,0.1]
[1739141653523,0.3608,95608.0,95600.0,0.101]
[1739141653826,0.001,95607.0,95601.0,0.2091711]
[1739141654025,0.3608,95608.0,95600.0,0.102]
[1739141654724,0.3618,95608.0,95600.0,0.102]
[1739141654924,0.001,95607.0,95600.0,0.101]
[1739141655128,0.2713312,95607.0,95600.0,0.101]
[1739141655427,0.2703312,95607.0,95600.0,0.101]
[1739141655729,0.2703312,95607.0,95604.0,0.2091643]
[1739141655919,0.1179312,95607.0,95604.0,0.2091643]
[1739141656226,0.001,95608.0,95600.0,0.101]
[1739141656415,0.00015687,95613.0,95612.0,0.2091469]
[1739141656724,0.3608,95639.0,95633.0,0.2091001]
[1739141656917,0.3608,95639.0,95636.0,0.2090923]
[1739141657223,0.1964,95697.0,95635.0,0.3608]
[1739141657224,0.10092,95673.0,95635.0,0.3608]
[1739141657424,0.18891508,95690.0,95664.0,0.3608]
[1739141657628,0.37129786,95694.0,95684.0,0.3608]
[1739141657817,0.00015677,95687.0,95684.0,0.3608]
[1739141658024,0.00015677,95687.0,95684.0,0.14105958]
[1739141658226,0.00015677,95687.0,95684.0,0.35004768]
[1739141658539,0.00015677,95687.0,95686.0,0.2089852]
[1739141658726,0.3608,95707.0,95684.0,0.14105958]
[1739141658928,0.37098307,95707.0,95692.0,0.3608]
[1739141659131,0.46172,95727.0,95709.0,0.2089348]
[1739141659324,0.3608,95727.0,95711.0,0.2089302]
[1739141659525,0.12263383,95713.0,95701.0,0.25601554]
[1739141659829,0.30548203,95721.0,95720.0,0.208911]
[1739141660029,0.30548203,95721.0,95720.0,0.569711]
[1739141660625,0.15308203,95721.0,95720.0,0.569711]
[1739141660827,0.0972,95788.0,95720.0,0.3608]
[1739141660828,0.0015676,95764.0,95720.0,0.3608]
[1739141661027,0.0015676,95764.0,95748.0,0.2088495]
[1739141661231,0.0015676,95764.0,95757.0,0.2088297]
[1739141661434,0.0015676,95764.0,95761.0,0.3608]
[1739141661932,0.3608,95775.0,95762.0,0.2088193]
[1739141662133,0.3608,95775.0,95772.0,0.2087954]
[1739141663130,0.00015669,95783.0,95774.0,0.3608]
[1739141663332,0.00015669,95783.0,95774.0,0.5695932]
[1739141663630,0.18369123,95793.0,95791.0,0.208756]
[1739141663831,0.18369123,95793.0,95792.0,0.14141126]